Cogmind - Beta 11.1 @@@ ROGUE MODE // 2022.05.30 @ 17:16:55 Player: DDRAGON Result: Destroyed by G-50 Soldier with Heavy Laser Performance ------------- Evolutions (1) 500 Regions Visited (5) 1000 Robots Destroyed (33) 165 Value Destroyed (563) 563 Prototype IDs (3) 60 Alien Tech Used (0) 0 Bonus (-338) -338 TOTAL SCORE: 1950 Bonus ------- Friendly Fire -338 Cogmind --------- Core Integrity 0/400 Matter 287/300 Energy 100/100 System Corruption 3% Temperature Cool (9) Movement Core (100) Ox1 Location -8/Mines Parts ------- > --- POWER (1) -------- (None) > --- PROPULSION (2) --- (None) > --- UTILITY (4) ------ (None) > --- WEAPON (2) ------- Medium Laser Medium Laser > --- INVENTORY (5) ---- Aluminum Leg Cargo Storage Unit Peak State ------------ > --- POWER ------------ Deuterium Engine > --- PROPULSION ------- Aluminum Leg Aluminum Leg > --- UTILITY ---------- Heat Sink Medium Storage Unit High-capacity Battery Hardened Medium Armor Plating > --- WEAPON ----------- Particle Gun Improved Assault Rifle > --- INVENTORY -------- Aluminum Leg Cargo Storage Unit Insulated Plating Medium Laser Medium Laser Medium Laser Light Cannon Rocket Launcher [Rating: 17] Favorites ----------- Power Light Ion Engine Engine Light Ion Engine Power Core Light Nuclear Core Propulsion Aluminum Leg Leg Aluminum Leg Utility High-capacity Battery Device Heat Sink Storage High-capacity Battery Protection Insulated Plating Weapon Medium Laser Energy Gun Medium Laser Ballistic Gun Assault Rifle Launcher Rocket Launcher Impact Weapon Mace Build | -11 -10 -9 -9 -9 -8 ------- Run | Scr Mat Mat Min Exi Min Slots Evolved 2 | . . 2 . . . Power . | . . . . . . Propulsion . | . . . . . . Utility 2 | . . 2 . . . Weapon . | . . . . . . Parts Attached 43 | 6 15 8 10 1 3 Power 5 | 1 2 1 1 . . Engine 4 | 1 1 1 1 . . Core 1 | . 1 . . . . Reactor . | . . . . . . Propulsion 9 | 2 4 . 2 . 1 Treads . | . . . . . . Leg 9 | 2 4 . 2 . 1 Wheel . | . . . . . . Hover . | . . . . . . Flight . | . . . . . . Utility 14 | 1 3 5 5 . . Device 4 | . 3 . 1 . . Storage 7 | 1 . 3 3 . . Processor . | . . . . . . Hackware . | . . . . . . Protection 3 | . . 2 1 . . Artifact . | . . . . . . Weapon 15 | 2 6 2 2 1 2 Energy Gun 10 | 1 5 1 1 . 2 Energy Cannon . | . . . . . . Ballistic Gun 2 | 1 . 1 . . . Ballistic Cannon . | . . . . . . Launcher 2 | . . . 1 1 . Special Weapon . | . . . . . . Impact Weapon 1 | . 1 . . . . Slashing Weapon . | . . . . . . Piercing Weapon . | . . . . . . Special Melee Weapon . | . . . . . . Unidentified Prototypes 1 | . . 1 . . . Parts Lost 11 | . 2 . 2 7 . Power 3 | . 1 . 1 1 . Propulsion 2 | . . . . 2 . Utility 3 | . . . 1 2 . Weapon 3 | . 1 . . 2 . Highest Loss Streak 7 | . 2 . 2 7 . To Critical Strikes . | . . . . . . Average Slot Usage (%) 94 | . 95 99 99 94 27 Engine 8 | . 7 6 10 10 . Core 2 | . 6 4 . . . Leg 22 | . 28 22 22 20 8 Device 10 | . 11 11 11 10 . Storage 18 | . 14 22 22 22 . Protection 7 | . . 11 10 10 . Energy Gun 19 | . 18 19 21 18 19 Ballistic Gun 2 | . 8 2 . . . Naked Turns 20 | . . . . 7 13 Heaviest Build 68 | 12 16 68 39 37 4 Greatest Support 25 | 20 20 20 25 25 10 Greatest Overweight (x) 9 | . . 3 1 9 1 Average Overweight (x) . | . . 1 1 . . Largest Inventory Capacity 20 | 8 8 20 20 15 5 Average Capacity 9 | 6 8 8 12 14 5 Most Carried 11 | 3 8 10 11 10 5 Average Carried 8 | 1 6 7 9 9 2 Final Capacity 20 | 8 8 20 15 5 5 Final Carried 10 | 3 8 10 10 5 3 Class Distribution -------------------- 81% | Scavenger-Mutant 18% | Mutant Dominant Class ---------------- Scavenger-Mutant | -10/Materials Scavenger-Mutant | -9/Materials Scavenger-Mutant | -9/Mines Scavenger-Mutant | -9/Exiles Mutant | -8/Mines Resources | -11 -10 -9 -9 -9 -8 ----------- Run | Scr Mat Mat Min Exi Min Matter Collected 845 | 208 331 84 168 54 . Remotely . | . . . . . . Salvage Created 936 | . 462 192 242 40 . Parts 63 | . 26 22 15 . . Haulers Intercepted 1 | . 1 . . . . Recyclers Shooed . | . . . . . . Parts Field Recycled . | . . . . . . Retrieved Matter . | . . . . . . Parts Self-Destructed . | . . . . . . Prevented . | . . . . . . Kills | -11 -10 -9 -9 -9 -8 ------- Run | Scr Mat Mat Min Exi Min Combat Hostiles Destroyed 24 | . 8 9 7 . . Guns 22 | . 8 9 5 . . AOE 2 | . . . 2 . . Classes Destroyed 8 | . 4 2 2 . . Builder 3 | . 2 1 . . . Tunneler 1 | . . . 1 . . Hauler 1 | . 1 . . . . Recycler 1 | . . . 1 . . Watcher 1 | . 1 . . . . Swarmer 14 | . . 7 7 . . Grunt 10 | . 8 1 . 1 . Sentry 1 | . . 1 . . . Thug 1 | . . . 1 . . Best Kill Streak 7 | . 2 7 3 . . Combat Bots Only 7 | . 2 7 3 . . Max Kills in Single Turn 2 | . 1 1 2 1 . Gunslinging . | . . . . . . Exploded 2 | . . . 2 . . Melee . | . . . . . . Uniques/NPCs Destroyed . | . . . . . . Combat | -11 -10 -9 -9 -9 -8 -------- Run | Scr Mat Mat Min Exi Min Damage Taken 1957 | . 432 412 182 764 167 Core 465 | . 56 27 23 277 82 Absorbed by Shields . | . . . . . . Core Remaining (%) 88 | 100 77 . . . . Volleys Fired 99 | . 49 25 21 4 . Largest 2 | . 2 2 2 2 . Hottest 115 | . 115 115 115 83 . Shots Fired 186 | . 87 50 41 8 . Gun 181 | . 87 50 40 4 . Cannon . | . . . . . . Launcher 5 | . . . 1 4 . Special . | . . . . . . Kinetic 66 | . 48 18 . . . Thermal 115 | . 39 32 40 4 . Explosive 5 | . . . 1 4 . Electromagnetic . | . . . . . . Robot Hit Streak 13 | . 13 9 7 5 . Robot Miss Streak 4 | . 4 4 4 1 . Penetration Max . | . . . . . . Secondary Targets 1 | . . 1 . . . Max Gunslinging Chain 1 | . . 1 . . . Shots Hit Robots 115 | . 60 30 19 6 . Core Hits 49 | . 23 12 11 3 . Critical Kills . | . . . . . . Critical Parts Destroyed . | . . . . . . Critical Strikes . | . . . . . . Melee Attacks 7 | . 7 . . . . Impact 7 | . 7 . . . . Slashing . | . . . . . . Piercing . | . . . . . . Sneak Attacks . | . . . . . . Combat Hostiles . | . . . . . . Follow-up Attacks . | . . . . . . Damage Inflicted 1658 | . 737 443 392 84 2 Guns 1451 | . 737 443 256 15 . Cannons . | . . . . . . Explosions 205 | . . . 136 69 . Melee . | . . . . . . Ramming 2 | . . . . . 2 Kinetic 636 | . 441 195 . . . Thermal 815 | . 296 248 256 15 . Explosive 205 | . . . 136 69 . Electromagnetic . | . . . . . . Impact . | . . . . . . Slashing . | . . . . . . Piercing . | . . . . . . Highest Corruption 3 | . . . . 2 3 Average Corruption 2 | . . . . 2 2 Corruption Purged . | . . . . . . Corruption Blocked . | . . . . . . Effects 3 | . . . . 1 2 Heat Flow Errors 1 | . . . . . 1 Energy Discharges 1 | . . . . 1 . Alerts 1 | . . . . . 1 Overload Shots . | . . . . . . Overflow Damage . | . . . . . . Projectiles . | . . . . . . Explosions . | . . . . . . Melee . | . . . . . . Knockbacks . | . . . . . . Impact . | . . . . . . Kinetic . | . . . . . . Secondary . | . . . . . . Self-Inflicted Damage 1 | . . . . . 1 Shots . | . . . . . . Rammed 4 | . . . . . 4 Targets Rammed 4 | . . . . . 4 Kicked . | . . . . . . Crushed . | . . . . . . Highest Temperature 208 | . 138 120 208 . 164 Average Temperature 63 | . 42 51 98 . 82 Received Heat Transfer 435 | . 237 90 . . 108 Siege Activations . | . . . . . . Robots Corrupted . | . . . . . . Combat Hostiles . | . . . . . . Parts Fried . | . . . . . . Impact Corruptions . | . . . . . . Robots Melted . | . . . . . . Combat Hostiles . | . . . . . . Parts Melted 1 | . . . 1 . . Heat Transferred 2107 | . 757 629 666 55 . Parts Sabotaged . | . . . . . . Parts Stolen . | . . . . . . Parts Stripped . | . . . . . . Power Chain Reactions . | . . . . . . Missiles Intercepted . | . . . . . . Alert | -11 -10 -9 -9 -9 -8 ------- Run | Scr Mat Mat Min Exi Min Peak Influence 258 | . 177 208 258 . 45 Initial 81 | . . 8 81 . . Average 68 | . 58 50 95 . 17 Maximum Alert Level 1 | . . 1 1 . . Low Security (%) 87 | 100 100 93 73 . 100 Level 1 12 | . . 6 26 . . Level 2 . | . . . . . . Level 3 . | . . . . . . Level 4 . | . . . . . . Level 5 . | . . . . . . High Security . | . . . . . . Max Security . | . . . . . . Squads Dispatched 2 | . 1 1 . . . Investigation . | . . . . . . Extermination . | . . . . . . Reinforcement 2 | . 1 1 . . . Assault . | . . . . . . Garrison . | . . . . . . Intercept . | . . . . . . Searches Triggered . | . . . . . . Construction Impeded . | . . . . . . Haulers Reinforced . | . . . . . . Active Scanning Responses . | . . . . . . Cargo Convoy Interrupts . | . . . . . . Stealth | -11 -10 -9 -9 -9 -8 --------- Run | Scr Mat Mat Min Exi Min Distress Signals 2 | . . 2 . . . Communications Jammed . | . . . . . . Distress Signals . | . . . . . . Times Spotted 56 | . 15 18 7 8 8 Peak Tracking Total 9 | . 3 8 4 9 6 Tactical Retreats 1 | . . . . . 1 Traps | -11 -10 -9 -9 -9 -8 ------- Run | Scr Mat Mat Min Exi Min Traps Triggered . | . . . . . . Indirectly . | . . . . . . Trap Hack Attempts . | . . . . . . Triggered . | . . . . . . Disarmed . | . . . . . . Reprogrammed . | . . . . . . Reused . | . . . . . . Traps Extracted . | . . . . . . Installed . | . . . . . . Triggered . | . . . . . . Machines | -11 -10 -9 -9 -9 -8 ---------- Run | Scr Mat Mat Min Exi Min Machines Disabled 2 | . . . . 2 . Max in Single Turn 2 | . . . . 2 . Machines Sabotaged . | . . . . . . Garrisons Compromised . | . . . . . . Overloaded Fab Kills . | . . . . . . Hacking | -11 -10 -9 -9 -9 -8 --------- Run | Scr Mat Mat Min Exi Min Machines Accessed 6 | . 3 2 1 . . Terminals 4 | . 2 2 . . . Fabricators . | . . . . . . Repair Stations . | . . . . . . Recycling Units 1 | . 1 . . . . Scanalyzers . | . . . . . . Garrison Access . | . . . . . . Total Hacks 7 | . 3 3 1 . . Successful 7 | . 3 3 1 . . Failed . | . . . . . . Catastrophic . | . . . . . . Database Lockouts . | . . . . . . Manual 2 | . . 2 . . . Terminals 5 | . 2 3 . . . Fabricators . | . . . . . . Repair Stations . | . . . . . . Recycling Units 1 | . 1 . . . . Scanalyzers . | . . . . . . Garrison Access . | . . . . . . Terminal Hacks 4 | . 2 1 1 . . Prototype ID Bank 1 | . 1 . . . . Open Door 1 | . . . 1 . . Unreport Threat 1 | . 1 . . . . Locate Traps 1 | . . 1 . . . Fabricator Hacks . | . . . . . . Repair Station Hacks . | . . . . . . Recycling Unit Hacks 1 | . 1 . . . . Retrieve Components 1 | . 1 . . . . Scanalyzer . | . . . . . . Garrison Access Hacks . | . . . . . . Unauthorized Hacks 2 | . . 2 . . . Terminals 2 | . . 2 . . . Botnet 2 | . . 2 . . . Fabricators . | . . . . . . Repair Stations . | . . . . . . Recycling Units . | . . . . . . Scanalyzers . | . . . . . . Garrison Access . | . . . . . . Data Cores Recovered . | . . . . . . Used . | . . . . . . Hacking Detections . | . . . . . . Full Trace Events . | . . . . . . Feedback Events . | . . . . . . Feedback Blocked . | . . . . . . Robot Schematics Acquired . | . . . . . . Robots Built . | . . . . . . Authchips . | . . . . . . Time . | . . . . . . Total Robot Build Rating . | . . . . . . Part Schematics Acquired . | . . . . . . Parts Built . | . . . . . . Authchips . | . . . . . . Time . | . . . . . . Total Part Build Rating . | . . . . . . Parts Repaired . | . . . . . . Time . | . . . . . . Parts Recycled . | . . . . . . Recycled Matter . | . . . . . . Retrieved Matter . | . . . . . . Retrieved Components . | . . . . . . Parts Scanalyzed . | . . . . . . Part Schematics Acquired . | . . . . . . Parts Damaged . | . . . . . . Bothacking | -11 -10 -9 -9 -9 -8 ------------ Run | Scr Mat Mat Min Exi Min Used RIF Installer . | . . . . . . Robots Hacked . | . . . . . . Non-combat . | . . . . . . Combat . | . . . . . . Robot Hacks Applied . | . . . . . . Relay Couplers Released . | . . . . . . Fabnet Peak Effective % . | . . . . . . Robots Rewired . | . . . . . . Allies Hacked . | . . . . . . Hacks Repelled . | . . . . . . Allies | -11 -10 -9 -9 -9 -8 -------- Run | Scr Mat Mat Min Exi Min Total Allies 3 | . . . 3 . . Largest Group 3 | . . . 3 3 . Highest-Rated Group 40 | . . . 40 40 . Highest-Rated Ally 16 | . . . 16 16 . Total Orders . | . . . . . . Ally Attacks 8 | . . . . 8 . Total Damage 29 | . . . . 29 . Kills . | . . . . . . Allies Corrupted . | . . . . . . Allies Melted . | . . . . . . Intel | -11 -10 -9 -9 -9 -8 ------- Run | Scr Mat Mat Min Exi Min Robot Analysis Total . | . . . . . . Derelict Logs Recovered 1 | . . . 1 . . Drone Launches . | . . . . . . Drone Recoveries . | . . . . . . Exploration | -11 -10 -9 -9 -9 -8 ------------- Run | Scr Mat Mat Min Exi Min Turns Passed 2988 | 72 788 615 1208 153 152 Spaces Moved 1599 | 54 470 265 592 82 136 Core 56 | 6 . . . 15 35 Treads . | . . . . . . Legs 1543 | 48 470 265 592 67 101 Wheels . | . . . . . . Hover . | . . . . . . Flight . | . . . . . . Fastest Speed 50 | 50 120 190 190 50 50 Average Speed 159 | 112 120 194 190 169 106 Slowest Speed 500 | 120 120 330 190 500 120 Overloaded Moves . | . . . . . . Propulsion Burnouts . | . . . . . . Robots Hopped . | . . . . . . Cave-ins Triggered . | . . . . . . Exploration Rate (%) 36 | 3 65 32 81 12 26 Regions Visited 5 Branch Regions 3 Pre-discovered Areas 1 | . . . 1 . . Known Exits Taken . | . . . . . . Unknown Exits Taken 5 | 1 1 1 1 1 . Scrap Searched 1 | . . . 1 . . Spaces Dug 5 | . 5 . . . . Terrain Destroyed 49 | . 5 . 10 34 . Melee 5 | . 5 . . . . Projectile . | . . . . . . AOE 44 | . . . 10 34 . Terrain Rammed . | . . . . . . Walls Destroyed . | . . . . . . Machines Disabled . | . . . . . . Actions | -11 -10 -9 -9 -9 -8 --------- Run | Scr Mat Mat Min Exi Min Total 1843 | 62 597 319 635 86 144 Wait 45 | . 29 11 5 . . Move 1594 | 53 469 264 591 81 136 Hop . | . . . . . . Pick Up 22 | 3 12 4 3 . . Fast Attach 14 | 6 5 2 1 . . Attach 8 | . 1 2 2 . 3 Detach 5 | . 2 1 1 . 1 Swap 21 | . 9 4 7 1 . Drop 24 | . 14 6 4 . . Fire 99 | . 49 25 21 4 . Melee 7 | . 7 . . . . Ram 4 | . . . . . 4 Kick . | . . . . . . Crush . | . . . . . . Escape Stasis . | . . . . . . Rewire . | . . . . . . Trap . | . . . . . . Miscellaneous . | . . . . . . Route ------- -11/Scrapyard -10/Materials (discovered 2 exits: *Mat x2) -9/Materials -9/Mines (discovered 4 exits: [*Mat x2] / [*Exi] / [*Zio]) -9/Exiles -8/Mines History --------- Turn | Location | Event 6 | -11/Scrapyard | Discovered new exit (range 14) 73 | -11/Scrapyard | Entered Materials 314 | -10/Materials | Build established: Mutant 557 | -10/Materials | Discovered new exit (range 16) 784 | -10/Materials | Discovered new exit (range 7) 814 | -10/Materials | Build established: Scavenger-Mutant 861 | -10/Materials | Entered another Materials area 861 | -9/Materials | Evolved 2 slots: Utility x2 1302 | -9/Materials | Discovered new exit (range 11) 1449 | -9/Materials | Destroyed 7 combat bots 1476 | -9/Materials | Entered Mines 1501 | -9/Mines | Met a Derelict bent on vengeance 1779 | -9/Mines | Deemed a non-threat by the Exiles lab entrance 1779 | -9/Mines | Discovered new exit (range 5) 1830 | -9/Mines | Discovered new exit (range 14) 2021 | -9/Mines | Met a Derelict who couldn't figure out how to use a Trap Extractor 2071 | -9/Mines | Assisted by bots powering up and referring to "LRC-V3" 2231 | -9/Mines | A Derelict revealed a hidden shortcut to a safe place 2268 | -9/Mines | Learned location of Storage (-9) 2304 | -9/Mines | Discovered new exit (range 12) 2684 | -9/Mines | Entered Exiles 2684 | -9/Exiles | Accompanied by 3 allies 2715 | -9/Exiles | Discovered new exit (range 14) 2766 | -9/Exiles | Met 8R-AWN 2799 | -9/Exiles | Attacked by the Exiles 2830 | -9/Exiles | Core integrity fell below 50% 2830 | -9/Exiles | Released all parts (2) 2833 | -9/Exiles | Core integrity fell below 20% 2837 | -9/Exiles | Entered Mines 2860 | -8/Mines | Lost 7 parts (1p2n2u2w) 2989 | -8/Mines | Destroyed by G-50 Soldier with Heavy Laser Last Messages --------------- 02829_ Knocked back. 02829_ Rigged Rnf. Deuterium Engine explodes. 02829_ as-73804 destroyed. 02830_ Released Lrg. Storage Unit. 02830_ Released Hcp. Battery. 02831_ HV Slug penetrates Wall. 02836_ System corrupted: Energy discharge (-30). LOCATION=UNKNOWN GOAL=ESCAPE 02838_ K-01 Serf collects debris. 02887_ System corrupted: Heat flow error (+191). 02924_ System corrupted: IFF burst signal emitted. 02930_ K-01 Serf collects debris. 02952_ Laser Drill disabled. 02959_ K-01 Serf collects debris. 02974_ Slammed into G-50 Soldier. 02976_ Critical hit (Burn: +37). 02977_ Slammed into G-47 Trooper. 02977_ Destabilizing: System corrupted (+1). 02984_ K-01 Serf collects debris. Map ----- +----------------------------------------------------+ | ????????????? ?? #?????? ??????????? | | ?????????????? """ ##???? ???#??????? | | ??????????????? """ ##??? ? ???????? | | ???????????????? """ ##?? #????????? | | ????????????????? ### ?????????? | | ?????????????????? ??????????? | | ???????????????????# ??????????? | | ????????????????????# ## #??????????? | | ????????????????????# #?# #??????????? | | ?????????????????????# #??# #??????????? | | ?????????????????????## #### #??????????? | | ??????????????????????# #??????????? | | ??????????????????????## #### #??????????? | | ???????????????????????###??# #??????????? | | ????????????????????????????# #??????????? | | ???????????????############## #??????????? | | ???????????????# #??????????? | | ???????????????# ##############??????????? | | ???????????????# #???????????????????????? | | ???????????????# #???????????????????????? | | ???????????????# #???????????????????????? | | ??##########???# #???????????????????????? | | ??# #???# #???????????????????????? | | ??# """ #???# #???????????????????????? | | ??# """ #???# ##??????????????????????? | | ??# """ #??## @#######????????????????? | | ??# #?## ## ##???????????????? | | ??# #?# #???????????????? | | ??# #?# #???????????????? | | ??# #?## #???????????????? | | ??# #??##k g #???????????????? | | ??# """ ##### ggg ##???????????????? | | ??# """ ## # ###????????????????? | | ??# """ # ### # ########???????????? | | ??# # #?## # #???????????? | | ??########## #??# # ###### ####????????? | | ??????????## #??# # #### #????????? | | ?????????## ##?# # "" #????????? | | ?????????# ### ###### """ #????????? | | ?????????# #????# "" #????????? | | ?????????# #????# #????????? | | ?????????# #######????# #????????? | | ?????????## #???????????########????????? | | ??????????###????????????????????????????? | | ?????????????????????????????????????????? | | | | | | | | | | | +----------------------------------------------------+ Best States ------------- Heat Dissipation 42 Energy Generation 14 Energy Capacity 525 Matter Stores 300 Matter Capacity 300 Sight Range 16 Robot Scan Range 14 Terrain Scan Density 10 Armor Coverage 225 Resistance: EM 15 Evasion (%) 55 Item Schematics ----------------- None Robot Schematics ------------------ None Fabricated ------------ Nothing Alien Tech Used ----------------- None Achievements -------------- None Challenges ------------ None Game ------ Seed LinearDecoyWell Manual? 0 Play Time 00:18:47 Cumulative 31.9 hours Start 2022.05.30 @ 16:58:34 End 2022.05.30 @ 17:16:55 Sessions 1 Manual Loads 0 Difficulty Rogue Special Mode None Game No. 39 Rogue 39 Adventurer 0 Explorer 0 Win Type - Total 0 Types 0/0/0/0/0/0/0/0/0 Lore% 28 Gallery% 44 Achievement% 31 Wizard Run 0 Options --------- ASCII 0 Keyboard 1 Movement Numpad Keybinds 0 Fullscreen 1 Font 24/Proggy Map View 76x50 Tactical HUD 1 Map Filters NONE Filters NONE Steam 1 RUN: fcf7a709-09bc-4b09-8048-7e0d1a9f2038